[Event "*** Qualifier 2: Titled Tuesday 3|2 Blitz"]
[Site "Chess.com"]
[Date "2017.04.11"]
[Round "9"]
[White "Aragon"]
[Black "PowerThinking2650"]
[Result "0-1"]
[WhiteElo "2095"]
[BlackElo "2200"]
[TimeControl "180+2"]
[EndTime "15:07:10 PDT"]
[Termination "PowerThinking2650 won by checkmate"]

1. e4 {[%clk 0:03:01.9]} 1... e5 {[%clk 0:02:59.8]} 2. f4 {[%clk 0:03:01.3]}
2... Bc5 {[%clk 0:02:59]} 3. Nf3 {[%clk 0:03:01.7]} 3... d6 {[%clk 0:03:00]} 4.
c3 {[%clk 0:02:54]} 4... Nf6 {[%clk 0:02:58.7]} 5. d4 {[%clk 0:02:43]} 5... exd4
{[%clk 0:02:58.5]} 6. cxd4 {[%clk 0:02:44.9]} 6... Bb6 {[%clk 0:02:57.6]} 7. Nc3
{[%clk 0:02:30.7]} 7... O-O {[%clk 0:02:57.6]} 8. e5 {[%clk 0:02:30.3]} 8...
dxe5 {[%clk 0:02:54.2]} 9. fxe5 {[%clk 0:02:30.3]} 9... Nd5 {[%clk 0:02:55.1]}
10. Bc4 {[%clk 0:02:15.6]} 10... Be6 {[%clk 0:02:51]} 11. Qb3 {[%clk 0:02:14.2]}
11... c6 {[%clk 0:02:41.3]} 12. Nxd5 {[%clk 0:01:40.6]} 12... cxd5 {[%clk
0:02:38.1]} 13. Bd3 {[%clk 0:01:40.9]} 13... Nc6 {[%clk 0:02:38.6]} 14. Be3
{[%clk 0:01:40.9]} 14... f6 {[%clk 0:02:31.1]} 15. exf6 {[%clk 0:01:36.1]} 15...
Qxf6 {[%clk 0:02:30.9]} 16. O-O-O {[%clk 0:01:31.3]} 16... Rac8 {[%clk
0:02:21.7]} 17. Kb1 {[%clk 0:01:32]} 17... Na5 {[%clk 0:02:20.3]} 18. Qa4 {[%clk
0:01:27.1]} 18... Nc4 {[%clk 0:02:19.3]} 19. Bg5 {[%clk 0:01:19.4]} 19... Qf7
{[%clk 0:02:12.9]} 20. h4 {[%clk 0:01:07.8]} 20... Bf5 {[%clk 0:02:13.1]} 21.
Qb3 {[%clk 0:00:57.7]} 21... Rfe8 {[%clk 0:01:55.5]} 22. Rhf1 {[%clk 0:00:53.6]}
22... Qg6 {[%clk 0:01:51.2]} 23. g4 {[%clk 0:00:27.1]} 23... Bxd3+ {[%clk
0:01:51]} 24. Qxd3 {[%clk 0:00:28.2]} 24... Qxd3+ {[%clk 0:01:51.7]} 25. Rxd3
{[%clk 0:00:29.1]} 25... Re2 {[%clk 0:01:53]} 26. Bc1 {[%clk 0:00:22.7]} 26...
Rf8 {[%clk 0:01:49.2]} 27. b3 {[%clk 0:00:20.3]} 27... Nd6 {[%clk 0:01:49.7]}
28. Nd2 {[%clk 0:00:19.1]} 28... Rxf1 {[%clk 0:01:46.5]} 29. Nxf1 {[%clk
0:00:21]} 29... Ne4 {[%clk 0:01:47.6]} 30. Rf3 {[%clk 0:00:13.9]} 30... Bxd4
{[%clk 0:01:47.5]} 31. Rd3 {[%clk 0:00:14.1]} 31... Nc3+ {[%clk 0:01:47.9]} 32.
Ka1 {[%clk 0:00:12.5]} 32... Rxa2# {[%clk 0:01:47.9]} 0-1

[Event "*** Qualifier 2: Titled Tuesday 3|2 Blitz"]
[Site "Chess.com"]
[Date "2017.04.11"]
[Round "9"]
[White "Iball95"]
[Black "RitvarsReimanis"]
[Result "1/2-1/2"]
[WhiteElo "2537"]
[BlackElo "2433"]
[TimeControl "180+2"]
[EndTime "15:07:27 PDT"]
[Termination "Game drawn by repetition"]

1. e4 {[%clk 0:03:02]} 1... c5 {[%clk 0:02:58.3]} 2. Nf3 {[%clk 0:03:02.9]} 2...
Nc6 {[%clk 0:02:59.4]} 3. Nc3 {[%clk 0:03:02.2]} 3... d6 {[%clk 0:02:59.5]} 4.
Bb5 {[%clk 0:02:53.8]} 4... Bd7 {[%clk 0:02:59.9]} 5. O-O {[%clk 0:02:54.9]}
5... Nf6 {[%clk 0:02:59.5]} 6. Re1 {[%clk 0:02:55.9]} 6... e5 {[%clk 0:02:59.5]}
7. d3 {[%clk 0:02:56.2]} 7... Be7 {[%clk 0:03:00.6]} 8. Bg5 {[%clk 0:02:56.8]}
8... Ng8 {[%clk 0:02:56.6]} 9. Be3 {[%clk 0:02:45.7]} 9... Nf6 {[%clk
0:02:57.3]} 10. Bg5 {[%clk 0:02:46.9]} 10... Ng8 {[%clk 0:02:58.2]} 11. Bxe7
{[%clk 0:02:39.3]} 11... Ngxe7 {[%clk 0:03:00.1]} 12. Bc4 {[%clk 0:02:40]} 12...
Be6 {[%clk 0:02:58.9]} 13. a3 {[%clk 0:02:40.5]} 13... O-O {[%clk 0:02:54]} 14.
h3 {[%clk 0:02:38.2]} 14... h6 {[%clk 0:02:51.5]} 15. Rb1 {[%clk 0:02:34]} 15...
Nd4 {[%clk 0:02:50]} 16. Bxe6 {[%clk 0:02:21]} 16... fxe6 {[%clk 0:02:46.8]} 17.
Nxd4 {[%clk 0:02:22.1]} 17... exd4 {[%clk 0:02:38.6]} 18. Ne2 {[%clk 0:02:23.1]}
18... e5 {[%clk 0:02:39]} 19. c3 {[%clk 0:02:22.2]} 19... b6 {[%clk 0:02:33.7]}
20. cxd4 {[%clk 0:02:21.2]} 20... exd4 {[%clk 0:02:32.9]} 21. Ng3 {[%clk
0:02:18.2]} 21... d5 {[%clk 0:02:21.6]} 22. Qg4 {[%clk 0:02:13.7]} 22... dxe4
{[%clk 0:02:16.5]} 23. Rxe4 {[%clk 0:02:15.6]} 23... Nd5 {[%clk 0:02:12.7]} 24.
Qe6+ {[%clk 0:02:10]} 24... Kh8 {[%clk 0:02:10.9]} 25. Rbe1 {[%clk 0:01:57.1]}
25... Nf4 {[%clk 0:02:09.2]} 26. Qg4 {[%clk 0:01:51.1]} 26... Qg5 {[%clk
0:01:54.6]} 27. Qd1 {[%clk 0:01:39.9]} 27... Rf7 {[%clk 0:01:42.2]} 28. Re5
{[%clk 0:01:41]} 28... Qg6 {[%clk 0:01:40]} 29. R1e4 {[%clk 0:01:24]} 29... Raf8
{[%clk 0:01:39.1]} 30. b4 {[%clk 0:01:24.9]} 30... cxb4 {[%clk 0:01:21.2]} 31.
axb4 {[%clk 0:01:26.8]} 31... Nxg2 {[%clk 0:01:02.6]} 32. Re6 {[%clk 0:01:22.5]}
32... Qg5 {[%clk 0:00:55.1]} 33. R6e5 {[%clk 0:01:12.9]} 33... Qg6 {[%clk
0:00:55.7]} 34. Re6 {[%clk 0:01:13.3]} 34... Qg5 {[%clk 0:00:56.9]} 35. R6e5
{[%clk 0:01:01.6]} 35... Qg6 {[%clk 0:00:57.9]} 36. Re6 {[%clk 0:00:58.7]} 36...
Qg5 {[%clk 0:00:59.1]} 1/2-1/2

[Event "*** Qualifier 2: Titled Tuesday 3|2 Blitz"]
[Site "Chess.com"]
[Date "2017.04.11"]
[Round "9"]
[White "Hikaru"]
[Black "sergiochess83"]
[Result "1/2-1/2"]
[WhiteElo "2911"]
[BlackElo "2619"]
[TimeControl "180+2"]
[EndTime "15:07:37 PDT"]
[Termination "Game drawn by repetition"]

1. d4 {[%clk 0:03:02]} 1... Nf6 {[%clk 0:03:00.5]} 2. Nf3 {[%clk 0:03:02.5]}
2... g6 {[%clk 0:03:00.7]} 3. c4 {[%clk 0:03:03.1]} 3... Bg7 {[%clk 0:03:01.5]}
4. Nc3 {[%clk 0:03:03.8]} 4... d5 {[%clk 0:02:58.6]} 5. cxd5 {[%clk 0:03:05.7]}
5... Nxd5 {[%clk 0:02:59]} 6. e4 {[%clk 0:03:07.6]} 6... Nxc3 {[%clk 0:03:00.1]}
7. bxc3 {[%clk 0:03:09.5]} 7... c5 {[%clk 0:03:01.6]} 8. Be3 {[%clk 0:03:10.7]}
8... Qa5 {[%clk 0:03:00.8]} 9. Qd2 {[%clk 0:03:11.5]} 9... O-O {[%clk 0:02:58]}
10. Rb1 {[%clk 0:03:12.3]} 10... Nd7 {[%clk 0:02:50.2]} 11. Bd3 {[%clk
0:03:07.8]} 11... e5 {[%clk 0:02:46.9]} 12. d5 {[%clk 0:03:08.1]} 12... Qc7
{[%clk 0:02:43.9]} 13. c4 {[%clk 0:03:07.3]} 13... Nf6 {[%clk 0:02:45.1]} 14. h3
{[%clk 0:03:07.5]} 14... Ne8 {[%clk 0:02:43.4]} 15. O-O {[%clk 0:03:04.8]} 15...
Nd6 {[%clk 0:02:44.3]} 16. Nh2 {[%clk 0:03:05.6]} 16... f5 {[%clk 0:02:43.1]}
17. exf5 {[%clk 0:03:06.2]} 17... e4 {[%clk 0:02:22.5]} 18. f6 {[%clk
0:03:01.4]} 18... Bxf6 {[%clk 0:02:17.3]} 19. Be2 {[%clk 0:03:01.7]} 19... b6
{[%clk 0:02:04.7]} 20. Ng4 {[%clk 0:02:55.2]} 20... Bg7 {[%clk 0:01:50.5]} 21.
Bg5 {[%clk 0:02:47.8]} 21... Bxg4 {[%clk 0:01:37.4]} 22. Bxg4 {[%clk 0:02:44.1]}
22... Nxc4 {[%clk 0:01:35.1]} 23. Qe2 {[%clk 0:02:44.8]} 23... Nd6 {[%clk
0:01:33.7]} 24. Be6+ {[%clk 0:02:45.2]} 24... Kh8 {[%clk 0:01:34.6]} 25. h4
{[%clk 0:02:46.2]} 25... Bf6 {[%clk 0:01:29.3]} 26. Bf4 {[%clk 0:02:37.7]} 26...
Rad8 {[%clk 0:01:23.1]} 27. Qxe4 {[%clk 0:02:36.9]} 27... Qg7 {[%clk 0:00:56.6]}
28. Qe3 {[%clk 0:02:30.8]} 28... Bd4 {[%clk 0:00:57.4]} 29. Qc1 {[%clk 0:02:31]}
29... Ne4 {[%clk 0:00:48.8]} 30. Rb3 {[%clk 0:02:28.1]} 30... Nxf2 {[%clk
0:00:37.5]} 31. Kh2 {[%clk 0:02:28]} 31... Rxf4 {[%clk 0:00:36.5]} 32. Qxf4
{[%clk 0:02:26.5]} 32... Be5 {[%clk 0:00:37.5]} 33. Rxf2 {[%clk 0:02:28.4]}
33... Rf8 {[%clk 0:00:21.4]} 34. Rbf3 {[%clk 0:02:25.2]} 34... Bxf4+ {[%clk
0:00:17.3]} 35. Rxf4 {[%clk 0:02:27.1]} 35... Rxf4 {[%clk 0:00:17.7]} 36. Rxf4
{[%clk 0:02:28.4]} 36... Qe5 {[%clk 0:00:17.2]} 37. g3 {[%clk 0:02:29.3]} 37...
c4 {[%clk 0:00:17.9]} 38. Kh3 {[%clk 0:02:13.6]} 38... c3 {[%clk 0:00:16.9]} 39.
Rf8+ {[%clk 0:02:14.2]} 39... Kg7 {[%clk 0:00:18.1]} 40. Rf7+ {[%clk 0:02:16.1]}
40... Kh8 {[%clk 0:00:15.1]} 41. Rf8+ {[%clk 0:02:16.9]} 41... Kg7 {[%clk
0:00:12.7]} 42. Rf7+ {[%clk 0:02:18.8]} 42... Kh8 {[%clk 0:00:09.6]} 43. Rf8+
{[%clk 0:02:19.3]} 1/2-1/2

[Event "*** Qualifier 2: Titled Tuesday 3|2 Blitz"]
[Site "Chess.com"]
[Date "2017.04.11"]
[Round "9"]
[White "Rating-Schmating"]
[Black "Generalas"]
[Result "0-1"]
[WhiteElo "2241"]
[BlackElo "2219"]
[TimeControl "180+2"]
[EndTime "15:07:53 PDT"]
[Termination "Generalas won by checkmate"]

1. e4 {[%clk 0:03:01.9]} 1... e5 {[%clk 0:03:00]} 2. Nf3 {[%clk 0:03:01.6]} 2...
Nc6 {[%clk 0:03:00.2]} 3. d4 {[%clk 0:03:02.1]} 3... exd4 {[%clk 0:03:00.7]} 4.
Nxd4 {[%clk 0:03:03]} 4... Bc5 {[%clk 0:02:59.1]} 5. Nxc6 {[%clk 0:03:01.8]}
5... Qf6 {[%clk 0:02:59.3]} 6. Qf3 {[%clk 0:03:02.1]} 6... dxc6 {[%clk
0:02:51.1]} 7. Nc3 {[%clk 0:03:00.7]} 7... Be6 {[%clk 0:02:47.4]} 8. Be3 {[%clk
0:03:00.9]} 8... Bb4 {[%clk 0:02:47.1]} 9. Bd2 {[%clk 0:02:57.1]} 9... O-O-O
{[%clk 0:02:36.1]} 10. Bd3 {[%clk 0:02:52.7]} 10... Qxf3 {[%clk 0:02:30.9]} 11.
gxf3 {[%clk 0:02:53.4]} 11... Ne7 {[%clk 0:02:31.3]} 12. f4 {[%clk 0:02:53.6]}
12... f5 {[%clk 0:02:31.6]} 13. e5 {[%clk 0:02:52.8]} 13... Bxc3 {[%clk
0:02:10.3]} 14. Bxc3 {[%clk 0:02:52.5]} 14... c5 {[%clk 0:02:09.3]} 15. O-O-O
{[%clk 0:02:52.3]} 15... c4 {[%clk 0:02:05.2]} 16. Be2 {[%clk 0:02:52.9]} 16...
Rxd1+ {[%clk 0:01:57.5]} 17. Rxd1 {[%clk 0:02:52.9]} 17... Rd8 {[%clk 0:01:58]}
18. Rxd8+ {[%clk 0:02:50.1]} 18... Kxd8 {[%clk 0:01:59.9]} 19. Bd2 {[%clk
0:02:41.7]} 19... Kd7 {[%clk 0:01:53.8]} 20. Be3 {[%clk 0:02:40.4]} 20... b6
{[%clk 0:01:48.8]} 21. Kd2 {[%clk 0:02:41]} 21... a6 {[%clk 0:01:33.3]} 22. Kc3
{[%clk 0:02:39.3]} 22... Nd5+ {[%clk 0:01:28.8]} 23. Kd4 {[%clk 0:02:40]} 23...
c5+ {[%clk 0:01:27.9]} 24. Kxc4 {[%clk 0:02:33.9]} 24... Nxf4+ {[%clk
0:01:17.5]} 25. Kc3 {[%clk 0:02:32.2]} 25... Nxe2+ {[%clk 0:01:17.4]} 26. Kd3
{[%clk 0:02:33]} 26... Ng1 {[%clk 0:00:46.8]} 27. b4 {[%clk 0:02:30.7]} 27...
Kc6 {[%clk 0:00:46.4]} 28. bxc5 {[%clk 0:02:31.9]} 28... bxc5 {[%clk 0:00:47]}
29. a3 {[%clk 0:02:30.1]} 29... Nf3 {[%clk 0:00:46]} 30. Bf4 {[%clk 0:02:30.3]}
30... g5 {[%clk 0:00:45.1]} 31. Bc1 {[%clk 0:02:30.7]} 31... h6 {[%clk
0:00:44.4]} 32. Ke3 {[%clk 0:02:32.6]} 32... Nxe5 {[%clk 0:00:44.9]} 33. h4
{[%clk 0:02:33.4]} 33... Ng6 {[%clk 0:00:37.2]} 34. hxg5 {[%clk 0:02:32.2]}
34... hxg5 {[%clk 0:00:38.2]} 35. Kf3 {[%clk 0:02:33.9]} 35... g4+ {[%clk
0:00:38]} 36. Kg3 {[%clk 0:02:34.7]} 36... Kd5 {[%clk 0:00:38.9]} 37. f3 {[%clk
0:02:34.4]} 37... gxf3 {[%clk 0:00:39.1]} 38. Kxf3 {[%clk 0:02:36.3]} 38... Kc4
{[%clk 0:00:40.1]} 39. Be3 {[%clk 0:02:35.9]} 39... Bd5+ {[%clk 0:00:40.1]} 40.
Ke2 {[%clk 0:02:36.3]} 40... Be4 {[%clk 0:00:40.8]} 41. Kd2 {[%clk 0:02:37.1]}
41... f4 {[%clk 0:00:41.4]} 42. Bf2 {[%clk 0:02:38.3]} 42... Ne5 {[%clk
0:00:41.7]} 43. Kc1 {[%clk 0:02:39]} 43... Nf3 {[%clk 0:00:42.5]} 44. Kb2 {[%clk
0:02:39.7]} 44... Nd4 {[%clk 0:00:43.2]} 45. c3 {[%clk 0:02:40.1]} 45... Nb5
{[%clk 0:00:43.8]} 46. Be1 {[%clk 0:02:39.1]} 46... a5 {[%clk 0:00:43.7]} 47. a4
{[%clk 0:02:38.8]} 47... Nc7 {[%clk 0:00:44.2]} 48. Ka3 {[%clk 0:02:40.3]} 48...
Bc6 {[%clk 0:00:44.3]} 49. Bf2 {[%clk 0:02:39.6]} 49... Nd5 {[%clk 0:00:44.7]}
50. Kb2 {[%clk 0:02:40.2]} 50... Bxa4 {[%clk 0:00:45.2]} 51. Be1 {[%clk
0:02:39.7]} 51... Bd7 {[%clk 0:00:45.5]} 52. Bd2 {[%clk 0:02:39.9]} 52... f3
{[%clk 0:00:45.8]} 53. Be1 {[%clk 0:02:41.4]} 53... Ne3 {[%clk 0:00:45]} 54. Kc1
{[%clk 0:02:41.1]} 54... Bf5 {[%clk 0:00:44.8]} 55. Kd2 {[%clk 0:02:40.7]} 55...
Ng4 {[%clk 0:00:45.4]} 56. Bg3 {[%clk 0:02:40.9]} 56... a4 {[%clk 0:00:45.4]}
57. Bd6 {[%clk 0:02:37.3]} 57... a3 {[%clk 0:00:45.5]} 58. Bxc5 {[%clk 0:02:39]}
58... Kxc5 {[%clk 0:00:46.7]} 59. c4 {[%clk 0:02:40.6]} 59... Kxc4 {[%clk
0:00:47.1]} 60. Ke1 {[%clk 0:02:41.8]} 60... Kd3 {[%clk 0:00:46.9]} 61. Kd1
{[%clk 0:02:41.5]} 61... f2 {[%clk 0:00:44.3]} 62. Kc1 {[%clk 0:02:43.4]} 62...
f1=Q# {[%clk 0:00:44.8]} 0-1

[Event "*** Qualifier 2: Titled Tuesday 3|2 Blitz"]
[Site "Chess.com"]
[Date "2017.04.11"]
[Round "9"]
[White "donotreadit"]
[Black "evgenyermolaev"]
[Result "1-0"]
[WhiteElo "2521"]
[BlackElo "2361"]
[TimeControl "180+2"]
[EndTime "15:07:58 PDT"]
[Termination "donotreadit won by resignation"]

1. d4 {[%clk 0:03:02]} 1... Nf6 {[%clk 0:02:55.9]} 2. c4 {[%clk 0:03:02.2]} 2...
c5 {[%clk 0:02:47.1]} 3. Nf3 {[%clk 0:03:02.1]} 3... cxd4 {[%clk 0:02:46.9]} 4.
Nxd4 {[%clk 0:03:04]} 4... Nc6 {[%clk 0:02:46.4]} 5. Nc3 {[%clk 0:03:04.6]} 5...
g6 {[%clk 0:02:46.9]} 6. e4 {[%clk 0:03:05.1]} 6... d6 {[%clk 0:02:44.4]} 7. Be2
{[%clk 0:03:04.4]} 7... Bg7 {[%clk 0:02:45.1]} 8. Be3 {[%clk 0:03:05.9]} 8...
O-O {[%clk 0:02:46]} 9. O-O {[%clk 0:03:07.3]} 9... Bd7 {[%clk 0:02:46.5]} 10.
f3 {[%clk 0:03:06.9]} 10... Rc8 {[%clk 0:02:44.4]} 11. Qd2 {[%clk 0:03:06.9]}
11... Nxd4 {[%clk 0:02:41.7]} 12. Bxd4 {[%clk 0:03:07.8]} 12... Bc6 {[%clk
0:02:43.1]} 13. Rac1 {[%clk 0:02:59.2]} 13... Nd7 {[%clk 0:02:43.1]} 14. Be3
{[%clk 0:02:58.9]} 14... a6 {[%clk 0:02:16.7]} 15. Rfd1 {[%clk 0:02:56.5]} 15...
Nc5 {[%clk 0:02:09.4]} 16. Bf1 {[%clk 0:02:55.6]} 16... f5 {[%clk 0:01:45]} 17.
exf5 {[%clk 0:02:55.3]} 17... gxf5 {[%clk 0:01:45.8]} 18. b3 {[%clk 0:02:53.5]}
18... Kh8 {[%clk 0:01:32.3]} 19. Qf2 {[%clk 0:02:50.3]} 19... Qe8 {[%clk
0:01:27]} 20. Nd5 {[%clk 0:02:49.4]} 20... e6 {[%clk 0:01:11.5]} 21. Nb4 {[%clk
0:02:43.2]} 21... f4 {[%clk 0:01:05.2]} 22. Bd4 {[%clk 0:02:36.4]} 22... a5
{[%clk 0:00:51.2]} 23. Bxg7+ {[%clk 0:02:33.2]} 23... Kxg7 {[%clk 0:00:51.8]}
24. Rxd6 {[%clk 0:02:31.6]} 24... axb4 {[%clk 0:00:35.8]} 25. Qxc5 {[%clk
0:02:31.2]} 25... Rf5 {[%clk 0:00:36.8]} 26. Qxb4 {[%clk 0:02:28.6]} 26... Qg6
{[%clk 0:00:26.6]} 27. Re1 {[%clk 0:02:25.2]} 27... Re8 {[%clk 0:00:20.9]} 28.
Rxc6 {[%clk 0:02:02.6]} 28... bxc6 {[%clk 0:00:20.4]} 29. Bd3 {[%clk 0:02:04.2]}
29... Qf6 {[%clk 0:00:04.8]} 30. Bxf5 {[%clk 0:02:04.7]} 30... Qxf5 {[%clk
0:00:06.7]} 31. Qb7+ {[%clk 0:02:04.2]} 31... Kf6 {[%clk 0:00:05.4]} 32. Qxc6
{[%clk 0:02:05]} 32... Rd8 {[%clk 0:00:06.5]} 33. Qe4 {[%clk 0:02:04.9]} 33...
Qc5+ {[%clk 0:00:03.6]} 34. Kh1 {[%clk 0:02:05.9]} 34... Qd6 {[%clk 0:00:04.6]}
35. Qxh7 {[%clk 0:02:01.6]} 35... Qd2 {[%clk 0:00:04]} 36. Qh6+ {[%clk
0:02:01.4]} 36... Kf7 {[%clk 0:00:05.1]} 37. Qxe6+ {[%clk 0:02:02.6]} 37... Kg7
{[%clk 0:00:06.5]} 38. Qe5+ {[%clk 0:02:02.4]} 38... Kg6 {[%clk 0:00:07.1]} 39.
h3 {[%clk 0:02:00.4]} 39... Rd3 {[%clk 0:00:03.9]} 40. Qe6+ {[%clk 0:01:59.4]}
40... Kg7 {[%clk 0:00:04.2]} 41. Qg4+ {[%clk 0:02:00.7]} 41... Kf8 {[%clk
0:00:04.2]} 42. Qf5+ {[%clk 0:02:01.4]} 42... Kg7 {[%clk 0:00:05.2]} 43. Re7+
{[%clk 0:02:02.5]} 1-0

[Event "*** Qualifier 2: Titled Tuesday 3|2 Blitz"]
[Site "Chess.com"]
[Date "2017.04.11"]
[Round "9"]
[White "pastouche06"]
[Black "kleinebeer98"]
[Result "0-1"]
[WhiteElo "2290"]
[BlackElo "2464"]
[TimeControl "180+2"]
[EndTime "15:08:16 PDT"]
[Termination "kleinebeer98 won by resignation"]

1. c4 {[%clk 0:03:02]} 1... c5 {[%clk 0:02:57.6]} 2. Nc3 {[%clk 0:03:01.3]} 2...
b6 {[%clk 0:02:56.6]} 3. e4 {[%clk 0:02:59.2]} 3... Bb7 {[%clk 0:02:57.6]} 4.
Nge2 {[%clk 0:02:54.3]} 4... g6 {[%clk 0:02:56.4]} 5. d4 {[%clk 0:02:51.6]} 5...
cxd4 {[%clk 0:02:41.8]} 6. Nxd4 {[%clk 0:02:53.5]} 6... Bg7 {[%clk 0:02:42.3]}
7. Be3 {[%clk 0:02:52.3]} 7... Nc6 {[%clk 0:02:30.9]} 8. Be2 {[%clk 0:02:50]}
8... d6 {[%clk 0:02:21]} 9. O-O {[%clk 0:02:47.5]} 9... Nf6 {[%clk 0:02:19.7]}
10. Qd2 {[%clk 0:02:29.2]} 10... O-O {[%clk 0:02:18]} 11. Rac1 {[%clk
0:02:22.4]} 11... Rc8 {[%clk 0:02:13.4]} 12. b3 {[%clk 0:02:21.1]} 12... Nxd4
{[%clk 0:02:02.4]} 13. Bxd4 {[%clk 0:02:23]} 13... e5 {[%clk 0:02:00.6]} 14. Be3
{[%clk 0:02:18.2]} 14... Nxe4 {[%clk 0:02:01.7]} 15. Nxe4 {[%clk 0:02:18.6]}
15... Bxe4 {[%clk 0:02:03.6]} 16. Rfd1 {[%clk 0:02:19.8]} 16... Rc6 {[%clk
0:01:52.4]} 17. b4 {[%clk 0:02:03.2]} 17... Qa8 {[%clk 0:01:28.5]} 18. f3 {[%clk
0:01:59.3]} 18... Bf5 {[%clk 0:01:20.5]} 19. b5 {[%clk 0:01:59.9]} 19... Rcc8
{[%clk 0:01:14.9]} 20. Qxd6 {[%clk 0:02:00.5]} 20... e4 {[%clk 0:01:12]} 21. f4
{[%clk 0:01:49.4]} 21... Rfd8 {[%clk 0:01:08.4]} 22. Qb4 {[%clk 0:01:48.5]}
22... Rd3 {[%clk 0:01:08.9]} 23. Bxd3 {[%clk 0:01:35.9]} 23... exd3 {[%clk
0:01:10.8]} 24. c5 {[%clk 0:01:30.9]} 24... bxc5 {[%clk 0:00:59.7]} 25. Rxc5
{[%clk 0:01:30.2]} 25... Re8 {[%clk 0:00:58.6]} 26. Bf2 {[%clk 0:01:16.5]} 26...
h5 {[%clk 0:00:52.3]} 27. Rxf5 {[%clk 0:01:09.3]} 27... gxf5 {[%clk 0:00:52.5]}
28. Rxd3 {[%clk 0:01:10.3]} 28... Kh7 {[%clk 0:00:37.6]} 29. h3 {[%clk
0:00:47.3]} 29... Re4 {[%clk 0:00:36.6]} 30. Qc5 {[%clk 0:00:43.6]} 30... Rxf4
{[%clk 0:00:37.2]} 31. Bg3 {[%clk 0:00:38.5]} 31... Qe4 {[%clk 0:00:36.3]} 32.
Re3 {[%clk 0:00:36]} 32... Bd4 {[%clk 0:00:33.3]} 33. Qf8 {[%clk 0:00:27.8]}
33... Qxe3+ {[%clk 0:00:33.2]} 0-1

[Event "*** Qualifier 2: Titled Tuesday 3|2 Blitz"]
[Site "Chess.com"]
[Date "2017.04.11"]
[Round "9"]
[White "GamayevOleg"]
[Black "MyleneFarmer"]
[Result "0-1"]
[WhiteElo "2390"]
[BlackElo "2341"]
[TimeControl "180+2"]
[EndTime "15:08:18 PDT"]
[Termination "MyleneFarmer won by checkmate"]

1. d3 {[%clk 0:03:01.9]} 1... f6 {[%clk 0:02:58.8]} 2. e4 {[%clk 0:03:03.2]}
2... g6 {[%clk 0:02:59.7]} 3. Nf3 {[%clk 0:03:05.1]} 3... Nh6 {[%clk 0:03:00.6]}
4. Be2 {[%clk 0:03:07]} 4... Nf7 {[%clk 0:03:01.8]} 5. O-O {[%clk 0:03:08.9]}
5... c6 {[%clk 0:03:03.3]} 6. c3 {[%clk 0:03:10.8]} 6... b6 {[%clk 0:03:03.8]}
7. a4 {[%clk 0:03:11.7]} 7... Bb7 {[%clk 0:03:02.8]} 8. Re1 {[%clk 0:03:13.6]}
8... Bg7 {[%clk 0:03:03.5]} 9. Na3 {[%clk 0:03:15.5]} 9... O-O {[%clk
0:03:04.4]} 10. Nc2 {[%clk 0:03:17.1]} 10... d6 {[%clk 0:03:04.5]} 11. h3 {[%clk
0:03:15]} 11... e6 {[%clk 0:03:05.3]} 12. Ncd4 {[%clk 0:03:13.4]} 12... Qe7
{[%clk 0:03:06.1]} 13. Qb3 {[%clk 0:03:14.5]} 13... Nd8 {[%clk 0:03:01.7]} 14.
Qc2 {[%clk 0:03:14.9]} 14... Nd7 {[%clk 0:03:00.6]} 15. Bd2 {[%clk 0:03:14.9]}
15... a6 {[%clk 0:03:01.6]} 16. Qc1 {[%clk 0:03:14.8]} 16... Nf7 {[%clk
0:03:00.7]} 17. Nh2 {[%clk 0:03:15.1]} 17... c5 {[%clk 0:03:00.4]} 18. Ndf3
{[%clk 0:03:16.1]} 18... Nde5 {[%clk 0:03:01.4]} 19. Nxe5 {[%clk 0:03:16.5]}
19... Nxe5 {[%clk 0:02:53.7]} 20. Bh6 {[%clk 0:03:15.2]} 20... Rad8 {[%clk
0:02:48.4]} 21. Bxg7 {[%clk 0:03:16.3]} 21... Kxg7 {[%clk 0:02:50.3]} 22. f4
{[%clk 0:03:13.1]} 22... Nf7 {[%clk 0:02:46.1]} 23. Nf3 {[%clk 0:03:13.3]} 23...
e5 {[%clk 0:02:45]} 24. fxe5 {[%clk 0:03:14.3]} 24... dxe5 {[%clk 0:02:41.7]}
25. Rf1 {[%clk 0:03:14.6]} 25... Rd7 {[%clk 0:02:39.9]} 26. Qe3 {[%clk
0:03:15.5]} 26... Nd8 {[%clk 0:02:39.9]} 27. Rf2 {[%clk 0:03:15.2]} 27... Ne6
{[%clk 0:02:41.2]} 28. g3 {[%clk 0:03:16.1]} 28... Rfd8 {[%clk 0:02:41.6]} 29.
Raf1 {[%clk 0:03:16.3]} 29... c4 {[%clk 0:02:34.6]} 30. dxc4 {[%clk 0:03:10.6]}
30... Qc5 {[%clk 0:02:35.8]} 31. Qxc5 {[%clk 0:03:09.7]} 31... Nxc5 {[%clk
0:02:37.7]} 32. Kh2 {[%clk 0:02:55.2]} 32... Nxe4 {[%clk 0:02:32.2]} 33. Rg2
{[%clk 0:02:56]} 33... Bc6 {[%clk 0:02:24.7]} 34. Ra1 {[%clk 0:02:50.9]} 34...
Nd2 {[%clk 0:02:08.7]} 35. Ne1 {[%clk 0:02:43.1]} 35... Bxg2 {[%clk 0:02:05.8]}
36. Kxg2 {[%clk 0:02:45]} 36... Nb3 {[%clk 0:02:04.7]} 37. Ra3 {[%clk
0:02:44.9]} 37... Rd2 {[%clk 0:02:03.5]} 38. Kf3 {[%clk 0:02:41.8]} 38... Nc5
{[%clk 0:01:49.3]} 39. b4 {[%clk 0:02:39.8]} 39... Ne6 {[%clk 0:01:39.8]} 40. a5
{[%clk 0:02:39.8]} 40... Ng5+ {[%clk 0:01:36.4]} 41. Ke3 {[%clk 0:02:41.3]}
41... bxa5 {[%clk 0:01:36.2]} 42. h4 {[%clk 0:02:34.9]} 42... Ne6 {[%clk
0:01:28.9]} 43. Rxa5 {[%clk 0:02:35]} 43... f5 {[%clk 0:01:22.1]} 44. Rxa6
{[%clk 0:02:33.9]} 44... f4+ {[%clk 0:01:23.4]} 45. gxf4 {[%clk 0:02:33.9]}
45... Nxf4 {[%clk 0:01:24.5]} 46. Ra7+ {[%clk 0:02:31.4]} 46... Kf6 {[%clk
0:01:24.7]} 47. Ra6+ {[%clk 0:02:18.7]} 47... Kf5 {[%clk 0:01:21.3]} 48. Bf1
{[%clk 0:02:07.6]} 48... Rd1 {[%clk 0:01:18.9]} 49. Bd3+ {[%clk 0:01:44.3]}
49... Nxd3 {[%clk 0:01:12.8]} 50. Nf3 {[%clk 0:01:44.2]} 50... Nf4 {[%clk
0:01:09]} 51. Ng5 {[%clk 0:01:42.6]} 51... Rf1 {[%clk 0:00:57.2]} 52. Nxh7
{[%clk 0:01:26.8]} 52... Rd3# {[%clk 0:00:53.6]} 0-1